[Event "Late-Titled-Tuesday-Blitz-September-26-2023"]
[Site "Chess.com"]
[Date "2023.09.26"]
[Round "11"]
[White "Smiechu"]
[Black "Balla_Tamas"]
[Result "0-1"]
[WhiteElo "2530"]
[BlackElo "2453"]
[TimeControl "180+1"]
[EndTime "15:57:37 PDT"]
[Termination "Balla_Tamas won by resignation"]

1. e4 {[%clk 0:02:55.9]} 1... c5 {[%clk 0:02:59.9]} 2. Nf3 {[%clk 0:02:55.5]}
2... Nc6 {[%clk 0:03:00.3]} 3. d4 {[%clk 0:02:55.4]} 3... cxd4 {[%clk
0:03:01.2]} 4. Nxd4 {[%clk 0:02:56]} 4... e5 {[%clk 0:03:02]} 5. Nxc6 {[%clk
0:02:54.3]} 5... bxc6 {[%clk 0:03:02.3]} 6. c4 {[%clk 0:02:54.2]} 6... Nf6
{[%clk 0:03:01.4]} 7. Nc3 {[%clk 0:02:52.3]} 7... Bb4 {[%clk 0:03:01.4]} 8. Bd3
{[%clk 0:02:52.4]} 8... h6 {[%clk 0:02:59.1]} 9. O-O {[%clk 0:02:51.8]} 9... O-O
{[%clk 0:02:56.7]} 10. a3 {[%clk 0:02:50.3]} 10... Bxc3 {[%clk 0:02:56.4]} 11.
bxc3 {[%clk 0:02:51.2]} 11... d6 {[%clk 0:02:55.6]} 12. Be3 {[%clk 0:02:50.4]}
12... Be6 {[%clk 0:02:53.5]} 13. Rb1 {[%clk 0:02:45.5]} 13... Qa5 {[%clk
0:02:53.5]} 14. Qc2 {[%clk 0:02:41.4]} 14... Rfb8 {[%clk 0:02:51.1]} 15. Rb4
{[%clk 0:02:27.5]} 15... Qxa3 {[%clk 0:02:33.6]} 16. Rfb1 {[%clk 0:02:17.2]}
16... Rxb4 {[%clk 0:02:32.9]} 17. cxb4 {[%clk 0:02:17.4]} 17... Nd7 {[%clk
0:02:13.5]} 18. Bc1 {[%clk 0:02:15]} 18... Qa6 {[%clk 0:02:05.8]} 19. c5 {[%clk
0:02:14.7]} 19... Qb7 {[%clk 0:02:02.7]} 20. cxd6 {[%clk 0:02:14.5]} 20... Rd8
{[%clk 0:01:56.7]} 21. b5 {[%clk 0:02:12.4]} 21... cxb5 {[%clk 0:01:54.5]} 22.
Rxb5 {[%clk 0:02:10.4]} 22... Nb6 {[%clk 0:01:54.8]} 23. Qc7 {[%clk 0:01:39.8]}
23... Qxc7 {[%clk 0:01:51.2]} 24. dxc7 {[%clk 0:01:40.3]} 24... Rxd3 {[%clk
0:01:51.5]} 25. h3 {[%clk 0:01:30.5]} 25... Rd1+ {[%clk 0:01:51.6]} 26. Kh2
{[%clk 0:01:30.8]} 26... Rxc1 {[%clk 0:01:51.9]} 27. Rxe5 {[%clk 0:01:30.5]}
27... Rxc7 {[%clk 0:01:51.2]} 28. f4 {[%clk 0:01:31]} 28... Nc4 {[%clk
0:01:51.2]} 29. Rb5 {[%clk 0:01:29.7]} 29... a5 {[%clk 0:01:51.6]} 30. f5 {[%clk
0:01:29.2]} 30... Bd7 {[%clk 0:01:50.8]} 31. Rb8+ {[%clk 0:01:29.5]} 31... Kh7
{[%clk 0:01:50.2]} 32. g4 {[%clk 0:01:29.7]} 32... Ra7 {[%clk 0:01:49.3]} 33. h4
{[%clk 0:01:28.4]} 33... a4 {[%clk 0:01:48.2]} 34. h5 {[%clk 0:01:27.6]} 34...
a3 {[%clk 0:01:48.2]} 35. g5 {[%clk 0:01:28.1]} 35... hxg5 {[%clk 0:01:48.1]}
0-1

[Event "Late-Titled-Tuesday-Blitz-September-26-2023"]
[Site "Chess.com"]
[Date "2023.09.26"]
[Round "11"]
[White "GaiozNigalidze"]
[Black "nihalsarin"]
[Result "0-1"]
[WhiteElo "2733"]
[BlackElo "3066"]
[TimeControl "180+1"]
[EndTime "15:57:59 PDT"]
[Termination "nihalsarin won by resignation"]

1. d4 {[%clk 0:03:00.9]} 1... a6 {[%clk 0:03:00.9]} 2. e4 {[%clk 0:03:00.1]}
2... c6 {[%clk 0:03:01.2]} 3. Nf3 {[%clk 0:03:00.6]} 3... d5 {[%clk 0:03:01.6]}
4. Nc3 {[%clk 0:03:00]} 4... Bg4 {[%clk 0:03:02.2]} 5. Be2 {[%clk 0:02:59.8]}
5... e6 {[%clk 0:03:02.1]} 6. h3 {[%clk 0:02:58.6]} 6... Bh5 {[%clk 0:03:00.6]}
7. a3 {[%clk 0:02:53.7]} 7... Nd7 {[%clk 0:03:00.7]} 8. Bg5 {[%clk 0:02:48.3]}
8... Be7 {[%clk 0:03:00.4]} 9. Bxe7 {[%clk 0:02:47.8]} 9... Nxe7 {[%clk
0:03:01.3]} 10. O-O {[%clk 0:02:37]} 10... O-O {[%clk 0:03:00.9]} 11. Nd2 {[%clk
0:02:27.5]} 11... Bg6 {[%clk 0:03:01.2]} 12. exd5 {[%clk 0:02:23.9]} 12... cxd5
{[%clk 0:03:00.9]} 13. Nf3 {[%clk 0:02:24]} 13... Rc8 {[%clk 0:03:00.5]} 14. Bd3
{[%clk 0:02:24.4]} 14... Qb6 {[%clk 0:03:00.2]} 15. Bxg6 {[%clk 0:02:17.8]}
15... Nxg6 {[%clk 0:03:01.1]} 16. Rb1 {[%clk 0:02:12.3]} 16... Qc6 {[%clk
0:03:01.7]} 17. Qd3 {[%clk 0:02:06.9]} 17... Nb6 {[%clk 0:03:01.3]} 18. Rfe1
{[%clk 0:01:58.7]} 18... Nc4 {[%clk 0:03:01.3]} 19. Ne2 {[%clk 0:01:52]} 19...
Nd6 {[%clk 0:03:02]} 20. c3 {[%clk 0:01:51.7]} 20... b5 {[%clk 0:03:02.6]} 21.
Qe3 {[%clk 0:01:49.8]} 21... a5 {[%clk 0:03:02.8]} 22. Nc1 {[%clk 0:01:47.9]}
22... b4 {[%clk 0:03:02.8]} 23. axb4 {[%clk 0:01:47.8]} 23... axb4 {[%clk
0:03:03.7]} 24. cxb4 {[%clk 0:01:46.2]} 24... Nf5 {[%clk 0:03:04.5]} 25. Qe2
{[%clk 0:01:43.1]} 25... Qb6 {[%clk 0:03:04.7]} 26. Qd2 {[%clk 0:01:37.5]} 26...
Rb8 {[%clk 0:03:04.8]} 27. g4 {[%clk 0:01:34.9]} 27... Ngh4 {[%clk 0:03:03.1]}
28. Nxh4 {[%clk 0:01:20.1]} 28... Nxh4 {[%clk 0:03:04]} 29. Qe3 {[%clk 0:01:08]}
29... Qxb4 {[%clk 0:02:56]} 30. Ne2 {[%clk 0:01:00.9]} 30... Rfc8 {[%clk
0:02:55.2]} 31. Qg3 {[%clk 0:00:53]} 31... Ng6 {[%clk 0:02:55]} 32. h4 {[%clk
0:00:40.8]} 32... h6 {[%clk 0:02:53.8]} 33. h5 {[%clk 0:00:41]} 33... Ne7 {[%clk
0:02:54.5]} 34. g5 {[%clk 0:00:41.4]} 34... Nf5 {[%clk 0:02:54.3]} 35. Qg4
{[%clk 0:00:41.5]} 35... hxg5 {[%clk 0:02:53.2]} 36. Qxg5 {[%clk 0:00:39.7]}
36... Nxd4 {[%clk 0:02:53.9]} 37. Nxd4 {[%clk 0:00:31.8]} 37... Qxd4 {[%clk
0:02:54.8]} 38. h6 {[%clk 0:00:26.3]} 38... Rxb2 {[%clk 0:02:55.4]} 39. Rxb2
{[%clk 0:00:14.4]} 39... Qxb2 {[%clk 0:02:56.3]} 40. Re5 {[%clk 0:00:14.3]}
40... Qc1+ {[%clk 0:02:56.4]} 41. Qxc1 {[%clk 0:00:12.7]} 41... Rxc1+ {[%clk
0:02:57.3]} 42. Re1 {[%clk 0:00:12.4]} 42... Rxe1+ {[%clk 0:02:56.9]} 0-1

[Event "Late-Titled-Tuesday-Blitz-September-26-2023"]
[Site "Chess.com"]
[Date "2023.09.26"]
[Round "11"]
[White "Rital44"]
[Black "acertijo08"]
[Result "1-0"]
[WhiteElo "2520"]
[BlackElo "2401"]
[TimeControl "180+1"]
[EndTime "15:58:24 PDT"]
[Termination "Rital44 won by checkmate"]

1. d4 {[%clk 0:03:00.9]} 1... Nf6 {[%clk 0:02:59.7]} 2. Bg5 {[%clk 0:02:59.7]}
2... e6 {[%clk 0:02:59.6]} 3. Nd2 {[%clk 0:02:59.3]} 3... d5 {[%clk 0:02:59.3]}
4. c3 {[%clk 0:02:59.3]} 4... Be7 {[%clk 0:02:59.4]} 5. e3 {[%clk 0:02:59.7]}
5... c5 {[%clk 0:02:59.5]} 6. Bd3 {[%clk 0:02:58.6]} 6... Nc6 {[%clk 0:02:58.5]}
7. f4 {[%clk 0:02:59.2]} 7... cxd4 {[%clk 0:02:46.1]} 8. exd4 {[%clk 0:02:59.2]}
8... Nd7 {[%clk 0:02:33.7]} 9. Bxe7 {[%clk 0:02:58.5]} 9... Qxe7 {[%clk
0:02:34.6]} 10. Ngf3 {[%clk 0:02:59]} 10... O-O {[%clk 0:02:32]} 11. O-O {[%clk
0:02:57.3]} 11... Nf6 {[%clk 0:02:28.7]} 12. Qe2 {[%clk 0:02:57.5]} 12... Bd7
{[%clk 0:02:20]} 13. Ne5 {[%clk 0:02:56.9]} 13... a5 {[%clk 0:01:54.3]} 14. a4
{[%clk 0:02:55.8]} 14... g6 {[%clk 0:01:36.1]} 15. Rae1 {[%clk 0:02:55.2]} 15...
Nb8 {[%clk 0:01:18.7]} 16. g4 {[%clk 0:02:53]} 16... Bxa4 {[%clk 0:01:17.5]} 17.
g5 {[%clk 0:02:52.1]} 17... Nfd7 {[%clk 0:01:15.9]} 18. Ng4 {[%clk 0:02:52.6]}
18... Nc6 {[%clk 0:01:00.4]} 19. Nh6+ {[%clk 0:02:53.1]} 19... Kg7 {[%clk
0:00:59.8]} 20. Rf3 {[%clk 0:02:53.8]} 20... Nd8 {[%clk 0:00:55.7]} 21. Rh3
{[%clk 0:02:52.2]} 21... f5 {[%clk 0:00:52.6]} 22. gxf6+ {[%clk 0:02:49.8]}
22... Nxf6 {[%clk 0:00:50.5]} 23. Qe5 {[%clk 0:02:46]} 23... Nc6 {[%clk
0:00:46.1]} 24. Qg5 {[%clk 0:02:46.5]} 24... Rae8 {[%clk 0:00:39.6]} 25. Nf5+
{[%clk 0:02:45.7]} 25... exf5 {[%clk 0:00:37.3]} 26. Rxe7+ {[%clk 0:02:46.6]}
26... Rxe7 {[%clk 0:00:37.7]} 27. Nf3 {[%clk 0:02:39.5]} 27... Rfe8 {[%clk
0:00:32.4]} 28. Ne5 {[%clk 0:02:39.5]} 28... Nxe5 {[%clk 0:00:28.8]} 29. fxe5
{[%clk 0:02:40.4]} 29... Ne4 {[%clk 0:00:27.4]} 30. Qh6+ {[%clk 0:02:40.5]}
30... Kg8 {[%clk 0:00:27.5]} 31. Bxe4 {[%clk 0:02:38.9]} 31... dxe4 {[%clk
0:00:25.4]} 32. Rg3 {[%clk 0:02:39.3]} 32... Re6 {[%clk 0:00:22.3]} 33. h4
{[%clk 0:02:39.5]} 33... Bd1 {[%clk 0:00:15.3]} 34. h5 {[%clk 0:02:38.8]} 34...
Bg4 {[%clk 0:00:15]} 35. hxg6 {[%clk 0:02:37.7]} 35... hxg6 {[%clk 0:00:15.9]}
36. Kf2 {[%clk 0:02:37.8]} 36... R8e7 {[%clk 0:00:14.5]} 37. Qg5 {[%clk
0:02:34.2]} 37... b5 {[%clk 0:00:14.1]} 38. Rg1 {[%clk 0:02:32.6]} 38... b4
{[%clk 0:00:13.7]} 39. Rh1 {[%clk 0:02:30.6]} 39... bxc3 {[%clk 0:00:13.6]} 40.
bxc3 {[%clk 0:02:31.5]} 40... Rb7 {[%clk 0:00:13.2]} 41. Qd8+ {[%clk 0:02:30.9]}
41... Kf7 {[%clk 0:00:11.6]} 42. Rh7# {[%clk 0:02:30.3]} 1-0

[Event "Late-Titled-Tuesday-Blitz-September-26-2023"]
[Site "Chess.com"]
[Date "2023.09.26"]
[Round "11"]
[White "Mesa_1"]
[Black "Lady_Nika"]
[Result "1-0"]
[WhiteElo "2640"]
[BlackElo "2536"]
[TimeControl "180+1"]
[EndTime "15:58:39 PDT"]
[Termination "Mesa_1 won by resignation"]

1. e4 {[%clk 0:03:00.9]} 1... e6 {[%clk 0:02:58.6]} 2. d4 {[%clk 0:03:00]} 2...
d5 {[%clk 0:02:59.2]} 3. Nd2 {[%clk 0:02:57.4]} 3... Nf6 {[%clk 0:02:56.9]} 4.
e5 {[%clk 0:02:56.2]} 4... Nfd7 {[%clk 0:02:57.2]} 5. Bd3 {[%clk 0:02:56.9]}
5... c5 {[%clk 0:02:57.5]} 6. c3 {[%clk 0:02:57.7]} 6... Nc6 {[%clk 0:02:58]} 7.
Ngf3 {[%clk 0:02:58.2]} 7... a6 {[%clk 0:02:58.5]} 8. O-O {[%clk 0:02:57.4]}
8... b5 {[%clk 0:02:58.6]} 9. Re1 {[%clk 0:02:56.7]} 9... Qb6 {[%clk 0:02:58.4]}
10. Nf1 {[%clk 0:02:32.2]} 10... Be7 {[%clk 0:02:56.7]} 11. Be3 {[%clk 0:02:25]}
11... c4 {[%clk 0:02:55.9]} 12. Bc2 {[%clk 0:02:23.8]} 12... a5 {[%clk
0:02:56.4]} 13. h4 {[%clk 0:02:20.8]} 13... h6 {[%clk 0:02:54.2]} 14. h5 {[%clk
0:02:17.6]} 14... Bb7 {[%clk 0:02:54]} 15. N3h2 {[%clk 0:02:16.7]} 15... Kd8
{[%clk 0:02:53.6]} 16. Qg4 {[%clk 0:02:16.7]} 16... Bf8 {[%clk 0:02:48.4]} 17.
Qf4 {[%clk 0:02:12.9]} 17... f6 {[%clk 0:02:47.4]} 18. exf6 {[%clk 0:02:06.5]}
18... gxf6 {[%clk 0:02:46.7]} 19. Ng3 {[%clk 0:01:57.4]} 19... Qc7 {[%clk
0:02:44]} 20. Qf3 {[%clk 0:01:43.9]} 20... f5 {[%clk 0:02:43.4]} 21. Bf4 {[%clk
0:01:40]} 21... Bd6 {[%clk 0:02:43.5]} 22. Ne2 {[%clk 0:01:29.3]} 22... e5
{[%clk 0:02:36.4]} 23. dxe5 {[%clk 0:01:25.9]} 23... Ncxe5 {[%clk 0:02:26.3]}
24. Qh3 {[%clk 0:01:25.9]} 24... Nd3 {[%clk 0:02:05.1]} 25. Bxd3 {[%clk
0:01:20.6]} 25... cxd3 {[%clk 0:02:04.8]} 26. Bxd6 {[%clk 0:01:21.3]} 26... Qxd6
{[%clk 0:02:04.7]} 27. Nd4 {[%clk 0:01:22.1]} 27... Rg8 {[%clk 0:01:56.7]} 28.
Qxd3 {[%clk 0:01:18.1]} 28... Nc5 {[%clk 0:01:49.6]} 29. Qxf5 {[%clk 0:01:15.6]}
29... Bc8 {[%clk 0:01:46.3]} 30. Qf3 {[%clk 0:01:07.2]} 30... Bd7 {[%clk
0:01:42.4]} 31. Rad1 {[%clk 0:01:05.1]} 31... Kc7 {[%clk 0:01:42]} 32. Nf5
{[%clk 0:00:59.9]} 32... Qc6 {[%clk 0:01:22.3]} 33. Ne7 {[%clk 0:00:55.6]} 1-0

[Event "Late-Titled-Tuesday-Blitz-September-26-2023"]
[Site "Chess.com"]
[Date "2023.09.26"]
[Round "11"]
[White "agustinv04"]
[Black "K_alena13"]
[Result "0-1"]
[WhiteElo "2312"]
[BlackElo "2146"]
[TimeControl "180+1"]
[EndTime "15:58:42 PDT"]
[Termination "K_alena13 won by checkmate"]

1. e4 {[%clk 0:03:00.9]} 1... e5 {[%clk 0:02:59.7]} 2. Nf3 {[%clk 0:03:01.3]}
2... Nc6 {[%clk 0:02:59.9]} 3. Bc4 {[%clk 0:03:01.6]} 3... Nf6 {[%clk
0:02:59.4]} 4. Ng5 {[%clk 0:02:58.8]} 4... d5 {[%clk 0:02:58.5]} 5. exd5 {[%clk
0:02:59.7]} 5... Na5 {[%clk 0:02:58.6]} 6. Bb5+ {[%clk 0:03:00.3]} 6... c6
{[%clk 0:02:59]} 7. dxc6 {[%clk 0:03:01.2]} 7... bxc6 {[%clk 0:02:59.6]} 8. Bd3
{[%clk 0:03:01.7]} 8... Nd5 {[%clk 0:02:58.3]} 9. Nf3 {[%clk 0:02:49.3]} 9...
Bd6 {[%clk 0:02:53.3]} 10. O-O {[%clk 0:02:45.6]} 10... O-O {[%clk 0:02:52.1]}
11. Re1 {[%clk 0:02:46.1]} 11... Qc7 {[%clk 0:02:40.5]} 12. Bf1 {[%clk
0:02:12.4]} 12... Bg4 {[%clk 0:02:22.2]} 13. d3 {[%clk 0:02:07.4]} 13... f5
{[%clk 0:02:18.8]} 14. h3 {[%clk 0:01:55]} 14... Bh5 {[%clk 0:02:17.4]} 15. Nbd2
{[%clk 0:01:28.6]} 15... Rae8 {[%clk 0:02:12.6]} 16. Be2 {[%clk 0:01:27.4]}
16... Nf4 {[%clk 0:02:07.9]} 17. Nf1 {[%clk 0:01:20.9]} 17... Nxe2+ {[%clk
0:02:04.6]} 18. Qxe2 {[%clk 0:01:15.8]} 18... e4 {[%clk 0:02:02.7]} 19. Qd2
{[%clk 0:00:33.4]} 19... exf3 {[%clk 0:01:56.2]} 20. Rxe8 {[%clk 0:00:17.9]}
20... Rxe8 {[%clk 0:01:57.1]} 21. gxf3 {[%clk 0:00:15.2]} 21... Bxf3 {[%clk
0:01:53.9]} 22. b4 {[%clk 0:00:14.5]} 22... Re2 {[%clk 0:01:44.6]} 23. Qg5
{[%clk 0:00:12.8]} 23... Re1 {[%clk 0:01:33.5]} 24. bxa5 {[%clk 0:00:08.5]}
24... Bh2# {[%clk 0:01:32.7]} 0-1

[Event "Late-Titled-Tuesday-Blitz-September-26-2023"]
[Site "Chess.com"]
[Date "2023.09.26"]
[Round "11"]
[White "Lion_DL"]
[Black "KorolDimitriy75"]
[Result "1-0"]
[WhiteElo "2483"]
[BlackElo "2362"]
[TimeControl "180+1"]
[EndTime "15:58:48 PDT"]
[Termination "Lion_DL won on time"]

1. d4 {[%clk 0:03:00.9]} 1... Nf6 {[%clk 0:02:59.8]} 2. c4 {[%clk 0:03:01]} 2...
c5 {[%clk 0:03:00.1]} 3. d5 {[%clk 0:03:00.3]} 3... b5 {[%clk 0:03:00.3]} 4.
cxb5 {[%clk 0:02:55.4]} 4... a6 {[%clk 0:03:00.5]} 5. e3 {[%clk 0:02:54.5]} 5...
axb5 {[%clk 0:03:00.1]} 6. Bxb5 {[%clk 0:02:53.1]} 6... Qa5+ {[%clk 0:02:59.7]}
7. Nc3 {[%clk 0:02:52.1]} 7... Bb7 {[%clk 0:02:59.7]} 8. Bc4 {[%clk 0:02:45.2]}
8... e6 {[%clk 0:02:58.9]} 9. dxe6 {[%clk 0:02:42.8]} 9... Bxg2 {[%clk
0:02:54.7]} 10. exf7+ {[%clk 0:02:38.3]} 10... Kd8 {[%clk 0:02:54.4]} 11. f3
{[%clk 0:02:29.1]} 11... Nc6 {[%clk 0:02:26.6]} 12. Kf2 {[%clk 0:02:26.2]} 12...
Bxh1 {[%clk 0:02:21.2]} 13. Nge2 {[%clk 0:02:26.1]} 13... Bxf3 {[%clk 0:02:11]}
14. Kxf3 {[%clk 0:02:16.9]} 14... Ne5+ {[%clk 0:02:10]} 15. Kg2 {[%clk
0:02:15.3]} 15... Nxc4 {[%clk 0:02:01.6]} 16. Qd3 {[%clk 0:02:14.4]} 16... Qa6
{[%clk 0:01:33.9]} 17. Nf4 {[%clk 0:02:10.3]} 17... g5 {[%clk 0:00:49.9]} 18.
Nfd5 {[%clk 0:02:00.6]} 18... Nxd5 {[%clk 0:00:36.7]} 19. Nxd5 {[%clk
0:02:01.5]} 19... Nb6 {[%clk 0:00:26.6]} 20. Qc3 {[%clk 0:01:46]} 20... Qe2+
{[%clk 0:00:15]} 21. Kg1 {[%clk 0:01:45.6]} 21... Nxd5 {[%clk 0:00:07.6]} 22.
Qxh8 {[%clk 0:01:45]} 22... Kc7 {[%clk 0:00:06.1]} 23. Qe5+ {[%clk 0:01:43.4]}
23... Bd6 {[%clk 0:00:05.6]} 24. Qxd5 {[%clk 0:01:42.6]} 24... Qxh2+ {[%clk
0:00:03.2]} 25. Kf1 {[%clk 0:01:42.5]} 25... Rf8 {[%clk 0:00:02.6]} 26. Bd2
{[%clk 0:01:38.4]} 1-0

[Event "Late-Titled-Tuesday-Blitz-September-26-2023"]
[Site "Chess.com"]
[Date "2023.09.26"]
[Round "11"]
[White "Alexei_Gubajdullin"]
[Black "0gZPanda"]
[Result "0-1"]
[WhiteElo "2729"]
[BlackElo "3024"]
[TimeControl "180+1"]
[EndTime "15:59:07 PDT"]
[Termination "0gZPanda won on time"]

1. d4 {[%clk 0:03:00.9]} 1... Nf6 {[%clk 0:02:58]} 2. Nf3 {[%clk 0:03:01.1]}
2... c5 {[%clk 0:02:58.3]} 3. c3 {[%clk 0:03:00.4]} 3... d5 {[%clk 0:02:58]} 4.
Bf4 {[%clk 0:02:59.8]} 4... Nc6 {[%clk 0:02:56.6]} 5. e3 {[%clk 0:03:00.1]} 5...
Bg4 {[%clk 0:02:56]} 6. Nbd2 {[%clk 0:02:59.9]} 6... e6 {[%clk 0:02:54.6]} 7.
Bb5 {[%clk 0:02:58.5]} 7... Qb6 {[%clk 0:02:53.7]} 8. Qa4 {[%clk 0:02:57.5]}
8... a6 {[%clk 0:02:53.3]} 9. Bxc6+ {[%clk 0:02:55.5]} 9... Qxc6 {[%clk
0:02:53.5]} 10. Qxc6+ {[%clk 0:02:52.1]} 10... bxc6 {[%clk 0:02:54.4]} 11. Ne5
{[%clk 0:02:52.3]} 11... Rc8 {[%clk 0:02:52.9]} 12. Nb3 {[%clk 0:02:21.6]} 12...
cxd4 {[%clk 0:02:46.6]} 13. exd4 {[%clk 0:02:19.1]} 13... Bf5 {[%clk 0:02:45.5]}
14. f3 {[%clk 0:02:05.4]} 14... h6 {[%clk 0:02:43.5]} 15. Kd2 {[%clk 0:02:00.9]}
15... c5 {[%clk 0:02:36.6]} 16. Nxc5 {[%clk 0:01:55.8]} 16... Bxc5 {[%clk
0:02:37.5]} 17. dxc5 {[%clk 0:01:55.8]} 17... Rxc5 {[%clk 0:02:38.4]} 18. Be3
{[%clk 0:01:52.5]} 18... Rc8 {[%clk 0:02:37.8]} 19. b4 {[%clk 0:01:40.6]} 19...
O-O {[%clk 0:02:35.4]} 20. a4 {[%clk 0:01:39.5]} 20... Rfd8 {[%clk 0:02:34.1]}
21. Bd4 {[%clk 0:01:28.5]} 21... Ne8 {[%clk 0:02:32]} 22. b5 {[%clk 0:01:27.2]}
22... axb5 {[%clk 0:02:30.5]} 23. axb5 {[%clk 0:01:26.6]} 23... Nd6 {[%clk
0:02:30.5]} 24. Nc6 {[%clk 0:01:08.1]} 24... Rd7 {[%clk 0:02:28.8]} 25. Na7
{[%clk 0:00:56.1]} 25... Rb8 {[%clk 0:02:26.6]} 26. g4 {[%clk 0:00:50.5]} 26...
Bg6 {[%clk 0:02:25.7]} 27. h4 {[%clk 0:00:30.5]} 27... f6 {[%clk 0:02:23.3]} 28.
g5 {[%clk 0:00:24.3]} 28... e5 {[%clk 0:02:16.5]} 29. Bf2 {[%clk 0:00:23.2]}
29... Nxb5 {[%clk 0:02:15.6]} 30. gxf6 {[%clk 0:00:22.1]} 30... gxf6 {[%clk
0:02:13.5]} 31. Rhg1 {[%clk 0:00:20.7]} 31... Kh7 {[%clk 0:02:12.8]} 32. Ra6
{[%clk 0:00:17.4]} 32... Nxa7 {[%clk 0:02:11.7]} 33. Bxa7 {[%clk 0:00:16.7]}
33... Rb2+ {[%clk 0:02:11]} 34. Ke3 {[%clk 0:00:16.3]} 34... d4+ {[%clk
0:02:08.1]} 35. cxd4 {[%clk 0:00:16.1]} 35... Rb3+ {[%clk 0:02:08.5]} 36. Kf2
{[%clk 0:00:14.8]} 36... exd4 {[%clk 0:02:08.9]} 37. Rxf6 {[%clk 0:00:13.9]}
37... Bh5 {[%clk 0:02:08.6]} 38. Rd1 {[%clk 0:00:08.6]} 38... Rxa7 {[%clk
0:02:06.8]} 39. Rxd4 {[%clk 0:00:06.5]} 39... Rf7 {[%clk 0:01:53.4]} 40. Rdd6
{[%clk 0:00:01.1]} 40... Rxf3+ {[%clk 0:01:52]} 0-1

[Event "Late-Titled-Tuesday-Blitz-September-26-2023"]
[Site "Chess.com"]
[Date "2023.09.26"]
[Round "11"]
[White "NovikovaGalina"]
[Black "dadice10"]
[Result "0-1"]
[WhiteElo "2376"]
[BlackElo "2246"]
[TimeControl "180+1"]
[EndTime "15:59:07 PDT"]
[Termination "dadice10 won by resignation"]

1. d4 {[%clk 0:03:00.9]} 1... d5 {[%clk 0:02:54.7]} 2. Nc3 {[%clk 0:03:00.5]}
2... Nf6 {[%clk 0:02:49]} 3. Bf4 {[%clk 0:03:00.6]} 3... c5 {[%clk 0:02:48.7]}
4. e4 {[%clk 0:02:59.6]} 4... cxd4 {[%clk 0:02:44.4]} 5. Qxd4 {[%clk 0:02:53]}
5... Nc6 {[%clk 0:02:42.3]} 6. Bb5 {[%clk 0:02:53.5]} 6... Bd7 {[%clk
0:02:25.5]} 7. Bxc6 {[%clk 0:02:52.5]} 7... Bxc6 {[%clk 0:02:26.4]} 8. exd5
{[%clk 0:02:46.8]} 8... Nxd5 {[%clk 0:02:24.8]} 9. O-O-O {[%clk 0:02:40.2]} 9...
e6 {[%clk 0:02:20.4]} 10. Nf3 {[%clk 0:02:35.5]} 10... Qb6 {[%clk 0:02:13.9]}
11. Nxd5 {[%clk 0:02:17.6]} 11... Bxd5 {[%clk 0:02:10.9]} 12. Qe5 {[%clk
0:02:03.6]} 12... Bxf3 {[%clk 0:01:57]} 13. gxf3 {[%clk 0:01:59.3]} 13... Rc8
{[%clk 0:01:49.6]} 14. Rhe1 {[%clk 0:01:45.2]} 14... Qxf2 {[%clk 0:01:45.7]} 15.
Qb5+ {[%clk 0:01:37.9]} 15... Rc6 {[%clk 0:01:41.6]} 16. Re2 {[%clk 0:01:25.8]}
16... Qxf3 {[%clk 0:01:39.6]} 17. Qe5 {[%clk 0:01:05.6]} 17... f6 {[%clk
0:01:32.2]} 18. Qb8+ {[%clk 0:01:04.2]} 18... Kf7 {[%clk 0:01:32]} 19. Qxb7+
{[%clk 0:01:03.5]} 19... Kg6 {[%clk 0:01:29.1]} 20. Rg1+ {[%clk 0:00:56.9]}
20... Kf5 {[%clk 0:01:25.2]} 21. Bd2 {[%clk 0:00:33.8]} 21... Rxc2+ {[%clk
0:01:18.7]} 22. Kxc2 {[%clk 0:00:34.7]} 22... Qxb7 {[%clk 0:01:16.6]} 23. Rf2+
{[%clk 0:00:32]} 23... Ke4 {[%clk 0:01:15.9]} 24. Bc3 {[%clk 0:00:29.8]} 24...
e5 {[%clk 0:01:13.3]} 25. Re1+ {[%clk 0:00:28.5]} 25... Kd5 {[%clk 0:01:12.9]}
26. Rd2+ {[%clk 0:00:29.4]} 26... Ke6 {[%clk 0:01:12]} 27. Red1 {[%clk
0:00:25.6]} 27... Bc5 {[%clk 0:01:09.9]} 28. Rd5 {[%clk 0:00:24.7]} 28... Qxd5
{[%clk 0:01:08.3]} 0-1

[Event "Late-Titled-Tuesday-Blitz-September-26-2023"]
[Site "Chess.com"]
[Date "2023.09.26"]
[Round "11"]
[White "Agibileg"]
[Black "Alphafischer2019"]
[Result "1-0"]
[WhiteElo "2695"]
[BlackElo "2592"]
[TimeControl "180+1"]
[EndTime "15:59:18 PDT"]
[Termination "Agibileg won by checkmate"]

1. d4 {[%clk 0:02:59.5]} 1... Nf6 {[%clk 0:02:59.4]} 2. c4 {[%clk 0:02:54.7]}
2... c5 {[%clk 0:02:59.8]} 3. d5 {[%clk 0:02:52.9]} 3... e5 {[%clk 0:03:00.4]}
4. Nc3 {[%clk 0:02:51.4]} 4... d6 {[%clk 0:03:00.6]} 5. e4 {[%clk 0:02:51.9]}
5... g6 {[%clk 0:03:00.9]} 6. Nf3 {[%clk 0:02:52.5]} 6... Bg7 {[%clk 0:03:01.4]}
7. Be2 {[%clk 0:02:53.1]} 7... O-O {[%clk 0:03:01.7]} 8. O-O {[%clk 0:02:53.7]}
8... Nh5 {[%clk 0:03:02.5]} 9. Re1 {[%clk 0:02:51.8]} 9... Nf4 {[%clk
0:02:59.6]} 10. Bf1 {[%clk 0:02:50.8]} 10... h6 {[%clk 0:03:00.2]} 11. a3 {[%clk
0:02:37.6]} 11... Nd7 {[%clk 0:02:58.1]} 12. b4 {[%clk 0:02:37.2]} 12... b6
{[%clk 0:02:53.8]} 13. g3 {[%clk 0:02:37.2]} 13... Nh5 {[%clk 0:02:52]} 14. Rb1
{[%clk 0:02:15.2]} 14... Nhf6 {[%clk 0:02:51.2]} 15. Bg2 {[%clk 0:02:12.5]}
15... Ne8 {[%clk 0:02:50]} 16. Nh4 {[%clk 0:02:09.5]} 16... Ba6 {[%clk
0:02:47.4]} 17. Nb5 {[%clk 0:02:03.9]} 17... Qe7 {[%clk 0:02:36]} 18. f4 {[%clk
0:02:00]} 18... Bxb5 {[%clk 0:02:26.8]} 19. cxb5 {[%clk 0:01:59.6]} 19... Nc7
{[%clk 0:02:25.2]} 20. Kh1 {[%clk 0:01:46.7]} 20... exf4 {[%clk 0:02:23.5]} 21.
Bxf4 {[%clk 0:01:31.5]} 21... Nxb5 {[%clk 0:02:22.2]} 22. bxc5 {[%clk
0:01:31.3]} 22... Nc3 {[%clk 0:02:21.6]} 23. Bxd6 {[%clk 0:01:28.5]} 23... Qd8
{[%clk 0:02:18.3]} 24. Qc2 {[%clk 0:01:23.4]} 24... Nxb1 {[%clk 0:02:17.1]} 25.
Qxb1 {[%clk 0:01:17.1]} 25... Nxc5 {[%clk 0:02:16.9]} 26. Bxf8 {[%clk
0:01:16.2]} 26... Qxf8 {[%clk 0:02:17.6]} 27. e5 {[%clk 0:01:16]} 27... Re8
{[%clk 0:02:13.6]} 28. e6 {[%clk 0:01:16.1]} 28... Kh7 {[%clk 0:02:01.7]} 29.
Rf1 {[%clk 0:01:07.5]} 29... f5 {[%clk 0:02:01.6]} 30. Nxf5 {[%clk 0:01:05.8]}
30... gxf5 {[%clk 0:02:01.7]} 31. Rxf5 {[%clk 0:01:06.7]} 31... Qxf5 {[%clk
0:01:39.5]} 32. Qxf5+ {[%clk 0:01:07.6]} 32... Kh8 {[%clk 0:01:39.6]} 33. Qg6
{[%clk 0:01:04.5]} 33... Re7 {[%clk 0:01:33.9]} 34. Be4 {[%clk 0:00:57.1]} 34...
Kg8 {[%clk 0:01:30.1]} 35. d6 {[%clk 0:00:49.1]} 35... Rxe6 {[%clk 0:01:08.9]}
36. Bd5 {[%clk 0:00:47]} 36... Kf8 {[%clk 0:01:02.7]} 37. Bxe6 {[%clk
0:00:45.3]} 37... Be5 {[%clk 0:01:03.6]} 38. Qf7# {[%clk 0:00:43.3]} 1-0